fUST/lending_fUST_20240718
["ID","MTS","AMOUNT","RATE_DAILY","PERIOD"]
[332487256,1721250001122,-158373.10868788,0.00035,120]
[332487257,1721250001149,-337200.00180301,0.00035,30]
[332487291,1721250126916,-2492.36782123,0.00031619,30]
[332487292,1721250126956,-2492.36782123,0.00034619,30]
[332487293,1721250126984,-2675752.58705854,0.00035,30]
[332487294,1721250127017,-490.23022101,0.00035,120]
[332487295,1721250127044,-880.6399174,0.00035,120]
[332487296,1721250127068,-13545.0,0.00035,30]
[332487297,1721250127095,-36333.43035977,0.00035,120]
[332487298,1721250127120,-7000.0,0.00035,30]
[332487299,1721250127146,-13281.0,0.00035,120]
[332487300,1721250127171,-475.31106416,0.00035616,30]
[332487301,1721250127198,-200.0,0.00035619,120]
[332487302,1721250127223,-6000.0,0.00036,30]
[332487303,1721250127248,-300.0,0.00036,120]
[332487304,1721250127274,-3125.0,0.0003653,120]
[332487305,1721250127299,-1957.988,0.000368,30]
[332487306,1721250127324,-350822.26197887,0.000368,30]
[332487307,1721250127351,-2492.36782123,0.00037619,30]
[332487308,1721250127377,-1295.79853361,0.00037818,38]
[332487309,1721250127575,-20552.12591808,0.00038,30]
[332487310,1721250127601,-400.0,0.00038,120]
[332487311,1721250127628,-490.23022101,0.00038,120]
[332487312,1721250138290,6230.92055303,0.00031619,30]
[332487313,1721250140406,500.0,0.00035616,120]
[332487314,1721250140823,500.0,0.00035616,120]
[332487315,1721250141240,500.0,0.00035616,120]
[332487316,1721250141660,278.39,0.00035616,120]
[332487317,1721250150411,150.5,0.00021897,62]
[332487318,1721250150457,168.0,0.00021897,62]
[332487319,1721250150487,2850.0,0.00021897,62]
[332487320,1721250150866,150.5,0.00021887,62]
[332487321,1721250150902,150.5,0.00021897,62]
[332487322,1721250150942,168.0,0.00021887,62]
[332487323,1721250150981,2850.0,0.00021887,62]
[332487324,1721250151326,150.5,0.00021877,62]
[332487325,1721250151361,150.5,0.00021887,62]
[332487326,1721250151403,168.0,0.00021877,62]
[332487327,1721250151478,2850.0,0.00021877,62]
[332487328,1721250151781,158.46,0.0002347,62]
[332487329,1721250151818,249.13,0.00021877,62]
[332487330,1721250151848,168.0,0.0002347,62]
[332487331,1721250151972,2850.0,0.0002347,62]
[332487332,1721250152370,168.0,0.0002346,62]
[332487333,1721250152445,2850.0,0.0002346,62]
[332487334,1721250152879,168.0,0.0002345,62]
[332487335,1721250152936,2850.0,0.0002345,62]
[332487336,1721250269847,150.5,0.00021897,62]
[332487337,1721250270321,150.5,0.00021887,62]
[332487338,1721250270469,150.5,0.00021897,62]
[332487339,1721250270987,150.5,0.00021887,62]
[332487340,1721250271033,150.5,0.00021877,62]
[332487341,1721250271430,1140.0,0.00021897,62]
[332487342,1721250271460,150.5,0.00021877,62]
[332487343,1721250271517,150.5,0.0002348,62]
[332487344,1721250271933,1140.0,0.00021887,62]
[332487345,1721250271971,150.5,0.0002348,62]
[332487346,1721250272007,150.5,0.0002347,62]
[332487347,1721250272382,296.35,0.0002347,62]
[332487348,1721250272422,191.65,0.0002346,62]
[332487349,1721250272456,1140.0,0.00021877,62]
[332487350,1721250272932,1140.0,0.0002348,62]
[332487351,1721250273415,1140.0,0.0002347,62]
[332487352,1721250273904,1140.0,0.0002346,62]
[332487353,1721250317349,150.80395486,0.00020274,30]
[332487354,1721250317402,150.80395486,0.00019869,120]
[332487355,1721250365292,2122.47397933,9.999e-05,2]
[332487356,1721250391746,456.0,0.00021907,62]
[332487357,1721250392422,456.0,0.00021897,62]
[332487358,1721250393469,456.0,0.00021887,62]
[332487359,1721250393940,456.0,0.0002348,62]
[332487360,1721250394417,456.0,0.0002347,62]
[332487361,1721250394900,456.0,0.0002346,62]
[332487362,1721250511711,182.0,0.00021897,62]
[332487363,1721250512206,182.0,0.00021887,62]
[332487364,1721250512733,182.0,0.00021877,62]
[332487365,1721250513191,182.0,0.0002345,62]
[332487366,1721250514332,182.0,0.0002344,62]
[332487367,1721250514817,182.0,0.0002343,62]
[332487374,1721250631590,150.5,0.00021897,62]
[332487407,1721250632036,-520.44154165,0.0001594,2]
[332487408,1721250632048,-323.73278094,0.0001625,2]
[332487410,1721250632059,-704.65277706,0.00016524,2]
[332487412,1721250632070,-201.738142,0.00016644,2]
[332487414,1721250632080,-991.37960329,0.00016694,2]
[332487416,1721250632092,-2008.62039671,0.00016694,2]
[332487418,1721250632102,-250.0,0.00017362,2]
[332487421,1721250632111,-250.0,0.0001741,2]
[332487424,1721250632120,-250.0,0.00017457,2]
[332487426,1721250632130,-250.0,0.00017505,2]
[332487429,1721250632139,-250.0,0.00017553,2]
[332487432,1721250632148,-250.0,0.000176,2]
[332487435,1721250632158,-250.0,0.00017648,2]
[332487438,1721250632176,-250.0,0.00017695,2]
[332487440,1721250632185,-250.0,0.00017743,2]
[332487443,1721250632194,-250.0,0.00017791,2]
[332487446,1721250632203,-181.90372983,0.00017838,2]
[332487449,1721250632217,-68.09627017,0.00017838,2]
[332487450,1721250632226,-250.0,0.00017886,2]
[332487452,1721250632236,-250.0,0.00017933,2]
[332487454,1721250632248,-250.0,0.00017981,2]
[332487455,1721250632258,-250.0,0.00018029,2]
[332487457,1721250632267,-250.0,0.00018076,2]
[332487459,1721250632276,-300.0,0.0001808,2]
[332487460,1721250632285,-5076.05342891,0.00018081,2]
[332487462,1721250632297,-604.99998376,0.00018081,2]
[332487464,1721250632662,150.5,0.00021887,62]
[332487495,1721250633354,150.5,0.00021877,62]
[332487496,1721250633834,282.52,0.0002345,62]
[332487569,1721250640243,-388.34928296,0.00018024,2]
[332487570,1721250640255,-24318.94658733,0.00018081,2]
[332487571,1721250640265,-250.0,0.00018124,2]
[332487572,1721250640274,-250.0,0.00018172,2]
[332487573,1721250640284,-250.0,0.00018219,2]
[332487574,1721250640294,-250.0,0.00018267,2]
[332487575,1721250640304,-550.0,0.00019178,2]
[332487576,1721250640314,-150.112233,0.0002,2]
[332487577,1721250640323,-293.6566525,0.00020219,2]
[332487578,1721250640333,-153.0,0.00020278,2]
[332487579,1721250640342,-187.676254,0.00020604,2]
[332487580,1721250640352,-150.80395486,0.00020688,7]
[332487581,1721250640363,-153.0,0.00020877,2]
[332487582,1721250640372,-206.4665977,0.00020884,2]
[332487583,1721250640382,-153.0,0.00020904,2]
[332487584,1721250640391,-153.0,0.00020904,2]
[332487585,1721250640401,-153.0,0.00020904,2]
[332487586,1721250640412,-352.95767281,0.00021012,2]
[332487587,1721250640422,-293.6566525,0.00021041,2]
[332487588,1721250640432,-293.3941432,0.00021041,2]
[332487589,1721250640441,-153.0,0.00021078,2]
[332487590,1721250640451,-187.500001,0.00021096,2]
[332487591,1721250640461,-475.441774,0.00021096,2]
[332487592,1721250640470,-150.80395486,0.0002111,4]
[332487593,1721250640480,-352.95767281,0.00021121,2]
[332487594,1721250640489,-306.0,0.00021151,2]
[332487595,1721250640498,-292.4316091,0.00021151,2]
[332487596,1721250640508,-586.7007833,0.00021151,2]
[332487597,1721250640517,-293.6566525,0.00021151,2]
[332487598,1721250640527,-293.6566525,0.00021151,2]
[332487599,1721250640537,-293.89533444,0.00021413,2]
[332487600,1721250640546,-3559.73402257,0.00021414,2]
[332487601,1721250640557,-435.0,0.00021432,2]
[332487602,1721250640566,-352.95767282,0.00021433,2]
[332487603,1721250640576,-153.0,0.00021534,2]
[332487604,1721250640585,-153.0,0.00021534,2]
[332487605,1721250640594,-153.0,0.00021534,2]
[332487606,1721250640604,-153.0,0.00021534,2]
[332487607,1721250640613,-153.0,0.00021534,2]
[332487608,1721250640623,-202.78437057,0.0002154,2]
[332487609,1721250640633,-150.80395486,0.00021541,2]
[332487610,1721250640642,-434.82719992,0.00021676,2]
[332487611,1721250640651,-8978.97251506,0.00021677,3]
[332487612,1721250640661,-154.80649189,0.00021684,2]
[332487613,1721250640670,-464.4268793,0.00021685,2]
[332487614,1721250640680,-500.0,0.00021686,2]
[332487615,1721250640689,-500.0,0.00021686,2]
[332487616,1721250640698,-500.0,0.00021686,2]
[332487617,1721250640707,-500.0,0.00021686,2]
[332487618,1721250640717,-500.0,0.00021686,2]
[332487619,1721250640726,-500.0,0.00021686,2]
[332487620,1721250640735,-500.0,0.00021686,2]
[332487621,1721250640744,-500.0,0.00021686,2]
[332487622,1721250640753,-500.0,0.00021686,2]
[332487623,1721250640762,-500.0,0.00021686,2]
[332487624,1721250640771,-500.0,0.00021686,2]
[332487625,1721250640780,-205.70974,0.00021686,2]
[332487626,1721250640789,-500.0,0.00021686,2]
[332487627,1721250640798,-500.0,0.00021686,2]
[332487628,1721250640809,-61982.76022424,0.00021687,2]
[332487629,1721250640818,-206.4665977,0.00021706,2]
[332487630,1721250640827,-206.4665977,0.00021706,2]
[332487631,1721250640836,-206.4665977,0.00021706,2]
[332487632,1721250640845,-206.4665977,0.00021706,2]
[332487633,1721250640854,-206.4665977,0.00021706,2]
[332487634,1721250640863,-206.4665977,0.00021706,2]
[332487635,1721250640880,-412.7035151,0.00021706,2]
[332487636,1721250640892,-206.4665977,0.00021706,2]
[332487637,1721250640902,-206.4665977,0.00021706,2]
[332487638,1721250640912,-206.4665977,0.00021706,2]
[332487639,1721250640922,-203.3276336,0.00021706,2]
[332487640,1721250640931,-206.4665977,0.00021706,2]
[332487641,1721250640942,-206.4665977,0.00021706,2]
[332487642,1721250640951,-206.4665977,0.00021706,2]
[332487643,1721250640961,-153.0,0.00021726,2]
[332487644,1721250640971,-153.0,0.00021726,2]
[332487645,1721250640981,-306.0,0.00021726,2]
[332487646,1721250640991,-797.13580596,0.00021807,2]
[332487647,1721250641000,-797.13580592,0.0002181,2]
[332487648,1721250641010,-797.13580592,0.00021812,2]
[332487649,1721250641020,-797.13580592,0.00021815,2]
[332487650,1721250641030,-479.41846907,0.00021816,2]
[332487651,1721250641039,-479.9558832,0.00021816,2]
[332487652,1721250641049,-500.0,0.00021816,2]
[332487653,1721250641061,-500.0,0.00021816,2]
[332487654,1721250641071,-403.29675906,0.00021816,2]
[332487655,1721250641080,-500.0,0.00021816,2]
[332487656,1721250641090,-500.0,0.00021816,2]
[332487657,1721250641099,-500.0,0.00021816,2]
[332487658,1721250641109,-10457.21922772,0.00021817,3]
[332487796,1721250644680,-153.0,0.00021534,2]
[332487797,1721250644690,-578.25757574,0.00021817,3]
[332487798,1721250644701,-3665.44910801,0.00021817,3]
[332488035,1721250753614,150.80395486,0.00021589,30]
[332488036,1721250753652,150.80395486,0.00021157,120]
[332488041,1721250871808,150.5,0.00021897,62]
[332488042,1721250872169,150.5,0.00021887,62]
[332488043,1721250872616,150.5,0.00021877,62]
[332488044,1721250873089,229.54,0.0002345,62]
[332488048,1721251355273,150.81901718,0.0002138,30]
[332488049,1721251355345,150.81901718,0.00020952,120]
[332488052,1721251695313,150.81901718,0.0002211,30]
[332488053,1721251695379,150.81901718,0.00021668,120]
[332488098,1721251833309,-187.676254,0.0001998,2]
[332488099,1721251833320,-1398.19632437,0.00019999,2]
[332488100,1721251833331,-300.0,0.00019999,2]
[332488101,1721251833341,-1143.47572261,0.0002,2]
[332488102,1721251833352,-4032.3183316,0.0002,2]
[332488103,1721251833362,-356.23476174,0.00020235,2]
[332488104,1721251833374,-193.76523826,0.00020235,2]
[332488105,1721251833385,-250.0,0.00020597,2]
[332488106,1721251833396,-250.0,0.00020653,2]
[332488107,1721251833407,-250.0,0.0002071,2]
[332488108,1721251833417,-250.0,0.00020766,2]
[332488109,1721251833428,-293.6566525,0.000208,2]
[332488110,1721251833438,-32.36749289,0.00020823,2]
[332488144,1721251838351,-217.63250711,0.00020823,2]
[332488145,1721251838361,-250.0,0.00020879,2]
[332488146,1721251838371,-206.4665977,0.00020884,2]
[332488147,1721251838380,-250.0,0.00020936,2]
[332488149,1721251838391,-244.47571519,0.00020947,2]
[332488215,1721252077313,150.80395486,0.00021982,30]
[332488216,1721252077360,150.80395486,0.00021542,120]
[332488232,1721252664075,150.80395486,0.00022188,30]
[332488233,1721252664122,150.80395486,0.00021744,120]
[332488234,1721252852573,1475.60294268,0.00024,60]
[332488249,1721253005626,1092.9276865,0.0001,2]
[332488292,1721253038558,-250.0,0.00019529,2]
[332488293,1721253038568,-106.15951768,0.00019582,2]
[332488313,1721253043600,-143.84048232,0.00019582,2]
[332488314,1721253043610,-250.0,0.00019636,2]
[332488315,1721253043619,-250.0,0.00019689,2]
[332488316,1721253043628,-120.12105901,0.00019743,2]
[332488330,1721253738986,150.80395486,0.00022255,30]
[332488382,1721254237863,-297.272984,0.00018181,2]
[332488383,1721254237872,-361.28727128,0.00018356,2]
[332488384,1721254237882,-4561.99799041,0.00018395,2]
[332488385,1721254237891,-300.0,0.00018672,2]
[332488386,1721254237901,-250.0,0.00018673,2]
[332488387,1721254237910,-250.0,0.00018725,2]
[332488388,1721254237919,-250.0,0.00018776,2]
[332488389,1721254237929,-4561.99799041,0.00018789,2]
[332488390,1721254237938,-361.28727128,0.00018824,2]
[332488391,1721254237947,-250.0,0.00018827,2]
[332488392,1721254237956,-250.0,0.00018878,2]
[332488393,1721254237966,-4561.99799041,0.0001892,2]
[332488394,1721254237976,-250.0,0.00018929,2]
[332488395,1721254237985,-250.0,0.00018981,2]
[332488396,1721254237994,-250.0,0.00019032,2]
[332488397,1721254238004,-361.28727128,0.00019067,2]
[332488398,1721254238013,-293.6566525,0.00019078,2]
[332488399,1721254238023,-293.6566525,0.00019078,2]
[332488400,1721254238032,-250.0,0.00019083,2]
[332488401,1721254238042,-250.0,0.00019134,2]
[332488402,1721254238051,-174.474159,0.00019178,2]
[332488403,1721254238061,-500.0,0.00019178,2]
[332488404,1721254238071,-293.6566525,0.00019178,2]
[332488405,1721254238080,-293.6566525,0.00019178,2]
[332488406,1721254238090,-250.0,0.00019185,2]
[332488407,1721254238099,-150.60173835,0.00019226,2]
[332488408,1721254238109,-250.0,0.00019237,2]
[332488409,1721254238118,-250.0,0.00019288,2]
[332488410,1721254238127,-4561.99799041,0.00019319,2]
[332488411,1721254238136,-250.0,0.00019339,2]
[332488412,1721254238146,-250.0,0.0001939,2]
[332488413,1721254238167,-361.28727128,0.00019403,2]
[332488414,1721254238178,-153.0,0.00019434,2]
[332488415,1721254238189,-153.0,0.00019434,2]
[332488416,1721254238199,-250.0,0.00019441,2]
[332488417,1721254238209,-615.44103005,0.00019444,2]
[332488418,1721254238219,-293.6566525,0.00019456,2]
[332488419,1721254238228,-293.6566525,0.00019456,2]
[332488420,1721254238237,-293.6566525,0.00019456,2]
[332488421,1721254238248,-250.0,0.00019493,2]
[332488422,1721254238257,-160.03553055,0.000195,2]
[332488423,1721254238267,-153.0,0.00019507,2]
[332488424,1721254238277,-153.0,0.00019507,2]
[332488425,1721254238287,-153.0,0.00019507,2]
[332488426,1721254238297,-153.0,0.00019507,2]
[332488427,1721254238307,-153.0,0.00019507,2]
[332488428,1721254238319,-153.0,0.00019507,2]
[332488429,1721254238328,-153.0,0.00019507,2]
[332488430,1721254238339,-153.0,0.00019507,2]
[332488431,1721254238348,-2490.45574283,0.00019541,2]
[332488437,1721254240070,-2071.54224762,0.00019541,2]
[332488438,1721254240079,-250.0,0.00019544,2]
[332488439,1721254240089,-293.6566525,0.00019556,2]
[332488440,1721254240098,-293.6566525,0.00019556,2]
[332488441,1721254240108,-293.6566525,0.00019556,2]
[332488442,1721254240117,-293.6566525,0.00019556,2]
[332488443,1721254240126,-293.6566525,0.00019556,2]
[332488444,1721254240136,-153.0,0.00019556,2]
[332488445,1721254240145,-153.0,0.00019556,2]
[332488446,1721254240154,-293.6566525,0.00019578,2]
[332488447,1721254240163,-153.0,0.00019578,2]
[332488448,1721254240173,-206.4665977,0.00019578,2]
[332488449,1721254240183,-293.6566525,0.00019578,2]
[332488450,1721254240192,-153.0,0.00019578,2]
[332488451,1721254240201,-153.0,0.00019578,2]
[332488452,1721254240211,-153.0,0.00019578,2]
[332488453,1721254240220,-151.0,0.00019585,2]
[332488454,1721254240230,-152.32735,0.00019585,2]
[332488455,1721254240239,-320.086415,0.00019585,2]
[332488456,1721254240248,-320.086415,0.00019585,2]
[332488457,1721254240258,-151.0,0.00019591,2]
[332488458,1721254240267,-151.0,0.00019591,2]
[332488459,1721254240277,-151.0,0.00019591,2]
[332488460,1721254240286,-151.0,0.00019591,2]
[332488461,1721254240295,-151.0,0.00019591,2]
[332488462,1721254240304,-827.43984,0.00019591,2]
[332488463,1721254240313,-827.43984,0.00019591,2]
[332488464,1721254240322,-759.481933,0.00019591,2]
[332488465,1721254240331,-759.481933,0.00019591,2]
[332488466,1721254240340,-151.0,0.00019591,2]
[332488467,1721254240349,-151.0,0.00019591,2]
[332488468,1721254240359,-151.0,0.00019591,2]
[332488469,1721254240367,-198.315839,0.00019591,2]
[332488470,1721254240377,-250.0,0.00019595,2]
[332488471,1721254240386,-456.669045,0.00019606,2]
[332488472,1721254240395,-250.0,0.00019646,2]
[332488473,1721254240404,-361.28727131,0.00019662,2]
[332488474,1721254240413,-156.976629,0.00019705,2]
[332488475,1721254240423,-151.0,0.00019705,2]
[332488476,1721254240432,-151.0,0.00019705,2]
[332488477,1721254240441,-151.0,0.00019705,2]
[332488478,1721254240451,-1325.544678,0.00019705,2]
[332488479,1721254240460,-1325.544678,0.00019705,2]
[332488480,1721254240472,-293.6566525,0.00019756,2]
[332488481,1721254240481,-153.0,0.00019756,2]
[332488482,1721254240490,-1004.74000735,0.000199,2]
[332488483,1721254240500,-293.89533444,0.0002,2]
[332488484,1721254240509,-827.43984,0.0002,2]
[332488485,1721254240519,-827.43984,0.0002,2]
[332488486,1721254240529,-759.481933,0.0002,2]
[332488487,1721254240538,-759.481933,0.0002,2]
[332488488,1721254240547,-151.0,0.0002,2]
[332488489,1721254240558,-151.0,0.0002,2]
[332488490,1721254240571,-491.45116219,0.00020154,2]
[332488491,1721254240582,-1037.91140569,0.00020155,2]
[332488492,1721254240591,-151.0,0.00020219,2]
[332488493,1721254240600,-320.086415,0.00020219,2]
[332488494,1721254240609,-320.086415,0.00020219,2]
[332488495,1721254240618,-151.0,0.00020219,2]
[332488496,1721254240629,-244.884153,0.00020219,2]
[332488497,1721254240638,-151.0,0.00020219,2]
[332488498,1721254240647,-151.0,0.00020219,2]
[332488499,1721254240657,-151.0,0.00020219,2]
[332488500,1721254240666,-153.0,0.00020219,2]
[332488501,1721254240675,-153.0,0.00020219,2]
[332488502,1721254240684,-153.0,0.00020219,2]
[332488503,1721254240693,-153.0,0.00020219,2]
[332488504,1721254240702,-153.0,0.00020219,2]
[332488505,1721254240711,-153.0,0.00020219,2]
[332488506,1721254240720,-153.0,0.00020219,2]
[332488507,1721254240729,-153.0,0.00020219,2]
[332488508,1721254240738,-153.0,0.00020219,2]
[332488509,1721254240747,-153.0,0.00020219,2]
[332488510,1721254240757,-153.0,0.00020219,2]
[332488511,1721254240766,-153.0,0.00020219,2]
[332488512,1721254240776,-877.44,0.00020268,3]
[332488513,1721254240785,-500.0,0.00020276,2]
[332488514,1721254240794,-500.0,0.00020276,2]
[332488515,1721254240803,-277.23392603,0.00020276,2]
[332488516,1721254240813,-245.07886,0.00020276,2]
[332488517,1721254240822,-30000.0,0.00020277,2]
[332488518,1721254240832,-151.0,0.00020277,2]
[332488519,1721254240841,-320.086415,0.00020277,2]
[332488520,1721254240850,-320.086415,0.00020277,2]
[332488521,1721254240859,-151.0,0.00020277,2]
[332488522,1721254240869,-151.0,0.00020277,2]
[332488523,1721254240878,-151.0,0.00020277,2]
[332488524,1721254240887,-151.0,0.00020277,2]
[332488525,1721254240896,-827.43984,0.00020277,2]
[332488526,1721254240905,-827.43984,0.00020277,2]
[332488527,1721254240915,-759.481933,0.00020277,2]
[332488528,1721254240924,-759.481933,0.00020277,2]
[332488529,1721254240933,-358.012201,0.00020278,2]
[332488530,1721254240942,-151.0,0.00020278,2]
[332488531,1721254240951,-3114.031578,0.00020278,2]
[332488532,1721254240960,-151.0,0.00020278,2]
[332488533,1721254240969,-3114.031578,0.00020278,2]
[332488534,1721254240978,-151.0,0.00020278,2]
[332488535,1721254240989,-151.111937,0.00020278,2]
[332488536,1721254240998,-151.0,0.00020278,2]
[332488537,1721254241007,-151.111937,0.00020278,2]
[332488538,1721254241017,-151.0,0.00020278,2]
[332488539,1721254241026,-1110.075262,0.00020278,2]
[332488540,1721254241036,-151.0,0.00020278,2]
[332488541,1721254241045,-1110.075262,0.00020278,2]
[332488542,1721254241056,-151.0,0.00020278,2]
[332488543,1721254241066,-151.0,0.00020278,2]
[332488544,1721254241076,-151.0,0.00020278,2]
[332488545,1721254241085,-151.0,0.00020278,2]
[332488546,1721254241094,-1325.544678,0.00020278,2]
[332488547,1721254241103,-1325.544678,0.00020278,2]
[332488548,1721254241112,-320.086415,0.00020278,2]
[332488549,1721254241121,-320.086415,0.00020278,2]
[332488550,1721254241131,-151.0,0.00020278,2]
[332488551,1721254241140,-151.0,0.00020278,2]
[332488552,1721254241149,-151.0,0.00020278,2]
[332488553,1721254241158,-151.0,0.00020278,2]
[332488554,1721254241167,-827.43984,0.00020278,2]
[332488555,1721254241177,-827.43984,0.00020278,2]
[332488556,1721254241188,-827.43984,0.00020278,2]
[332488557,1721254241198,-759.481933,0.00020278,2]
[332488558,1721254241207,-827.43984,0.00020278,2]
[332488559,1721254241216,-759.481933,0.00020278,2]
[332488560,1721254241226,-759.481933,0.00020278,2]
[332488561,1721254241235,-759.481933,0.00020278,2]
[332488562,1721254241244,-153.0,0.00020278,2]
[332488563,1721254241254,-153.0,0.00020278,2]
[332488564,1721254241263,-153.0,0.00020278,2]
[332488565,1721254241272,-154.80649189,0.00020292,2]
[332488566,1721254241281,-154.80649189,0.00020292,2]
[332488567,1721254241290,-827.43984,0.00020293,2]
[332488568,1721254241299,-759.481933,0.00020293,2]
[332488569,1721254241308,-827.43984,0.00020293,2]
[332488570,1721254241319,-759.481933,0.00020293,2]
[332488571,1721254241329,-8530.0238893,0.00020293,2]
[332488572,1721254241338,-151.0,0.00020303,2]
[332488573,1721254241348,-151.111937,0.00020303,2]
[332488574,1721254241357,-151.0,0.00020303,2]
[332488575,1721254241366,-151.111937,0.00020303,2]
[332488576,1721254241375,-1110.075262,0.00020303,2]
[332488577,1721254241385,-1110.075262,0.00020303,2]
[332488578,1721254241394,-151.0,0.00020303,2]
[332488579,1721254241403,-320.086415,0.00020303,2]
[332488580,1721254241412,-320.086415,0.00020303,2]
[332488581,1721254241421,-151.0,0.00020303,2]
[332488582,1721254241430,-151.0,0.00020303,2]
[332488583,1721254241439,-151.0,0.00020303,2]
[332488584,1721254241449,-151.0,0.00020304,2]
[332488585,1721254241458,-151.0,0.00020304,2]
[332488586,1721254241467,-151.0,0.00020304,2]
[332488587,1721254241480,-151.0,0.00020304,2]
[332488588,1721254241489,-151.0,0.00020304,2]
[332488589,1721254241498,-151.0,0.00020304,2]
[332488590,1721254241507,-1325.544678,0.00020304,2]
[332488591,1721254241517,-1325.544678,0.00020304,2]
[332488592,1721254241526,-827.43984,0.00020304,2]
[332488593,1721254241535,-827.43984,0.00020304,2]
[332488594,1721254241546,-759.481933,0.00020304,2]
[332488595,1721254241555,-759.481933,0.00020304,2]
[332488596,1721254241565,-385.9910749,0.00020304,2]
[332488597,1721254241574,-151.0,0.00020327,2]
[332488598,1721254241583,-151.0,0.00020327,2]
[332488599,1721254241592,-151.0,0.00020327,2]
[332488600,1721254241601,-151.0,0.00020327,2]
[332488601,1721254241611,-1325.544678,0.00020327,2]
[332488602,1721254241622,-1325.544678,0.00020327,2]
[332488603,1721254241631,-320.086415,0.00020327,2]
[332488604,1721254241641,-320.086415,0.00020327,2]
[332488605,1721254241650,-205.86218568,0.00020327,2]
[332488606,1721254241659,-1508.72196241,0.00020327,2]
[332488607,1721254241668,-500.0,0.00020327,2]
[332488608,1721254241677,-151.0,0.00020328,2]
[332488609,1721254241686,-151.0,0.00020328,2]
[332488610,1721254241696,-358.012201,0.00020328,2]
[332488611,1721254241705,-151.0,0.00020328,2]
[332488612,1721254241714,-3114.031578,0.00020328,2]
[332488613,1721254241724,-3114.031578,0.00020328,2]
[332488614,1721254241733,-268.017976,0.00020328,2]
[332488615,1721254241742,-151.111937,0.00020328,2]
[332488616,1721254241751,-151.0,0.00020328,2]
[332488617,1721254241760,-151.111937,0.00020328,2]
[332488618,1721254241769,-151.0,0.00020328,2]
[332488619,1721254241779,-151.0,0.00020328,2]
[332488620,1721254241788,-1110.075262,0.00020328,2]
[332488621,1721254241798,-151.0,0.00020328,2]
[332488622,1721254241807,-1110.075262,0.00020328,2]
[332488623,1721254241818,-151.0,0.00020328,2]
[332488624,1721254241827,-246.86788111,0.00020328,2]
[332488625,1721254241836,-151.0,0.00020328,2]
[332488626,1721254241845,-151.0,0.00020328,2]
[332488627,1721254241854,-151.0,0.00020328,2]
[332488628,1721254241863,-1325.544678,0.00020328,2]
[332488629,1721254241873,-1325.544678,0.00020328,2]
[332488630,1721254241882,-320.086415,0.00020328,2]
[332488631,1721254241892,-320.086415,0.00020328,2]
[332488632,1721254241901,-320.086415,0.00020328,2]
[332488633,1721254241910,-320.086415,0.00020328,2]
[332488634,1721254241920,-151.0,0.00020328,2]
[332488635,1721254241929,-151.0,0.00020328,2]
[332488636,1721254241938,-154.434102,0.00020328,2]
[332488637,1721254241947,-151.0,0.00020328,2]
[332488638,1721254241957,-827.43984,0.00020328,2]
[332488639,1721254241967,-827.43984,0.00020328,2]
[332488640,1721254241977,-827.43984,0.00020328,2]
[332488641,1721254241986,-827.43984,0.00020328,2]
[332488642,1721254241996,-759.481933,0.00020328,2]
[332488643,1721254242005,-759.481933,0.00020328,2]